[Event "*** Titled Tuesday Blitz"]
[Site "Chess.com"]
[Date "2018.12.04"]
[Round "4"]
[White "Rashad_Zeynalli"]
[Black "b_6"]
[Result "1-0"]
[WhiteElo "2345"]
[BlackElo "2383"]
[TimeControl "180+2"]
[EndTime "13:49:59 PST"]
[Termination "Rashad_Zeynalli won on time"]

1. d4 {[%clk 0:03:01.9]} 1... d5 {[%clk 0:02:57.6]} 2. c4 {[%clk 0:03:00.8]}
2... e6 {[%clk 0:02:59]} 3. Nc3 {[%clk 0:03:00.7]} 3... Nf6 {[%clk 0:03:00.3]}
4. cxd5 {[%clk 0:02:47]} 4... Nxd5 {[%clk 0:03:02.2]} 5. e4 {[%clk 0:02:47.2]}
5... Nxc3 {[%clk 0:03:02.2]} 6. bxc3 {[%clk 0:02:49.1]} 6... c5 {[%clk
0:03:03.9]} 7. Nf3 {[%clk 0:02:48.8]} 7... cxd4 {[%clk 0:03:04.3]} 8. cxd4
{[%clk 0:02:48.7]} 8... Bb4+ {[%clk 0:03:05.8]} 9. Bd2 {[%clk 0:02:48.3]} 9...
Bxd2+ {[%clk 0:03:07.1]} 10. Qxd2 {[%clk 0:02:50.2]} 10... O-O {[%clk
0:03:08.8]} 11. Bc4 {[%clk 0:02:41.5]} 11... Nd7 {[%clk 0:03:09.8]} 12. O-O
{[%clk 0:02:41.3]} 12... b6 {[%clk 0:03:11.2]} 13. d5 {[%clk 0:02:38.2]} 13...
Nc5 {[%clk 0:03:11.9]} 14. Rfe1 {[%clk 0:02:36.4]} 14... Bb7 {[%clk 0:03:08.1]}
15. Rad1 {[%clk 0:02:35.4]} 15... Qf6 {[%clk 0:02:51.4]} 16. Nd4 {[%clk
0:02:05.7]} 16... Rfd8 {[%clk 0:01:54.2]} 17. Qe3 {[%clk 0:01:42.4]} 17... exd5
{[%clk 0:01:20.2]} 18. exd5 {[%clk 0:01:41.7]} 18... h6 {[%clk 0:01:14.4]} 19.
Nb5 {[%clk 0:01:35.4]} 19... a6 {[%clk 0:00:57.7]} 20. Nc3 {[%clk 0:01:26.8]}
20... Rac8 {[%clk 0:00:52.6]} 21. Ne4 {[%clk 0:01:22.7]} 21... Nxe4 {[%clk
0:00:35.7]} 22. Qxe4 {[%clk 0:01:24.6]} 22... Rc7 {[%clk 0:00:28.6]} 23. Bb3
{[%clk 0:01:22.2]} 23... Rcd7 {[%clk 0:00:26.7]} 24. Re2 {[%clk 0:01:18.3]}
24... g6 {[%clk 0:00:26.7]} 25. Red2 {[%clk 0:01:17.8]} 25... Kg7 {[%clk
0:00:26.5]} 26. Qb4 {[%clk 0:01:16.4]} 26... Qd6 {[%clk 0:00:25.9]} 27. Qd4+
{[%clk 0:01:07.6]} 27... f6 {[%clk 0:00:19.2]} 28. h4 {[%clk 0:00:48.6]} 28...
Kh7 {[%clk 0:00:20.2]} 29. h5 {[%clk 0:00:31.7]} 29... gxh5 {[%clk 0:00:21.2]}
30. Qe4+ {[%clk 0:00:31.7]} 30... Kh8 {[%clk 0:00:21.6]} 31. Qg6 {[%clk
0:00:30.3]} 31... Rh7 {[%clk 0:00:20.7]} 32. Re2 {[%clk 0:00:26.3]} 32... Rg8
{[%clk 0:00:20.8]} 33. Re8 {[%clk 0:00:25.7]} 33... Rxe8 {[%clk 0:00:07]} 34.
Qxe8+ {[%clk 0:00:27.6]} 34... Kg7 {[%clk 0:00:07.8]} 35. Re1 {[%clk 0:00:28.4]}
1-0

[Event "*** Titled Tuesday Blitz"]
[Site "Chess.com"]
[Date "2018.12.04"]
[Round "4"]
[White "nOcHeaTiNgKiD"]
[Black "Schachmalanders"]
[Result "1-0"]
[WhiteElo "2424"]
[BlackElo "2304"]
[TimeControl "180+2"]
[EndTime "13:50:08 PST"]
[Termination "nOcHeaTiNgKiD won by resignation"]

1. Nf3 {[%clk 0:03:01.9]} 1... d5 {[%clk 0:01:56.4]} 2. e3 {[%clk 0:02:59.2]}
2... e6 {[%clk 0:01:53.9]} 3. g4 {[%clk 0:02:59]} 3... c5 {[%clk 0:01:53.5]} 4.
g5 {[%clk 0:02:59]} 4... Nc6 {[%clk 0:01:54.5]} 5. h4 {[%clk 0:02:59.3]} 5... e5
{[%clk 0:01:55.5]} 6. d3 {[%clk 0:02:57.9]} 6... Bd6 {[%clk 0:01:54.8]} 7. Rg1
{[%clk 0:02:54]} 7... Nge7 {[%clk 0:01:55.6]} 8. h5 {[%clk 0:02:52.4]} 8... Be6
{[%clk 0:01:55]} 9. e4 {[%clk 0:02:50.3]} 9... Qc7 {[%clk 0:01:45.9]} 10. Nc3
{[%clk 0:02:48.9]} 10... a6 {[%clk 0:01:46.5]} 11. exd5 {[%clk 0:02:46.2]} 11...
Nxd5 {[%clk 0:01:47.3]} 12. Ne4 {[%clk 0:02:47.4]} 12... O-O-O {[%clk
0:01:46.5]} 13. a3 {[%clk 0:02:39.5]} 13... Be7 {[%clk 0:01:29]} 14. c4 {[%clk
0:02:33.3]} 14... Nb6 {[%clk 0:01:17]} 15. Qc2 {[%clk 0:02:32.3]} 15... Rd7
{[%clk 0:00:57.7]} 16. Be3 {[%clk 0:02:29.3]} 16... Rhd8 {[%clk 0:00:49.5]} 17.
Bxc5 {[%clk 0:02:20.2]} 17... Bxc5 {[%clk 0:00:18.6]} 18. Nxc5 {[%clk 0:02:19]}
18... Bf5 {[%clk 0:00:19.3]} 19. Nxd7 {[%clk 0:02:10.9]} 19... Nxd7 {[%clk
0:00:20.1]} 20. O-O-O {[%clk 0:02:03.3]} 20... Nc5 {[%clk 0:00:21.3]} 21. b4
{[%clk 0:02:02.3]} 21... Ne6 {[%clk 0:00:20.4]} 22. Bg2 {[%clk 0:01:59.5]} 22...
Ncd4 {[%clk 0:00:20.6]} 23. Nxd4 {[%clk 0:02:00.5]} 23... Nxd4 {[%clk
0:00:22.5]} 24. Qb2 {[%clk 0:01:59.1]} 24... Kb8 {[%clk 0:00:21.3]} 25. Be4
{[%clk 0:01:58.9]} 25... Bxe4 {[%clk 0:00:21.4]} 26. dxe4 {[%clk 0:02:00.2]}
26... Qxc4+ {[%clk 0:00:22.4]} 27. Kb1 {[%clk 0:02:01.8]} 27... Qc6 {[%clk
0:00:18.5]} 28. Rge1 {[%clk 0:01:57.2]} 28... Rc8 {[%clk 0:00:18.9]} 29. Rc1
{[%clk 0:01:56.7]} 29... Qd7 {[%clk 0:00:19.4]} 30. Rxc8+ {[%clk 0:01:57.2]}
30... Qxc8 {[%clk 0:00:21.3]} 31. Rc1 {[%clk 0:01:57.8]} 31... Qg4 {[%clk
0:00:22.1]} 32. Qc3 {[%clk 0:01:51.3]} 32... Qxe4+ {[%clk 0:00:23.1]} 33. Ka1
{[%clk 0:01:52.2]} 33... Qd5 {[%clk 0:00:14]} 34. Kb2 {[%clk 0:01:45.4]} 34...
Qd8 {[%clk 0:00:07.2]} 35. Re1 {[%clk 0:01:42.6]} 35... f6 {[%clk 0:00:06]} 36.
f4 {[%clk 0:01:33.6]} 36... Nb5 {[%clk 0:00:04.8]} 37. Qe3 {[%clk 0:01:27.9]}
37... fxg5 {[%clk 0:00:05.1]} 38. fxe5 {[%clk 0:01:28.1]} 38... Ka8 {[%clk
0:00:03.1]} 39. e6 {[%clk 0:01:29.1]} 39... Qe7 {[%clk 0:00:04.1]} 40. Qe5
{[%clk 0:01:26.6]} 40... Nd6 {[%clk 0:00:05.1]} 41. Rc1 {[%clk 0:01:26.9]} 41...
b5 {[%clk 0:00:05.8]} 42. Rc6 {[%clk 0:01:26.5]} 42... Nc4+ {[%clk 0:00:07]} 43.
Rxc4 {[%clk 0:01:27.1]} 43... bxc4 {[%clk 0:00:08.9]} 44. Qd5+ {[%clk
0:01:28.4]} 44... Kb8 {[%clk 0:00:10]} 45. Qxc4 {[%clk 0:01:28.8]} 45... Qd6
{[%clk 0:00:10.2]} 46. Qe4 {[%clk 0:01:27.5]} 46... Qh2+ {[%clk 0:00:10.8]} 47.
Kb3 {[%clk 0:01:28.5]} 47... Kc7 {[%clk 0:00:11.6]} 48. e7 {[%clk 0:01:28.3]}
48... Qg3+ {[%clk 0:00:13]} 49. Ka4 {[%clk 0:01:28.2]} 49... Qg1 {[%clk
0:00:05.2]} 50. Qe5+ {[%clk 0:01:26.4]} 50... Kb6 {[%clk 0:00:04.8]} 51. Qc5+
{[%clk 0:01:26.5]} 51... Qxc5 {[%clk 0:00:05.2]} 52. bxc5+ {[%clk 0:01:27.6]}
52... Kxc5 {[%clk 0:00:07.1]} 53. e8=Q {[%clk 0:01:29.1]} 1-0

[Event "*** Titled Tuesday Blitz"]
[Site "Chess.com"]
[Date "2018.12.04"]
[Round "4"]
[White "KenanGarayev"]
[Black "Bigfish1995"]
[Result "1-0"]
[WhiteElo "2770"]
[BlackElo "3006"]
[TimeControl "180+2"]
[EndTime "13:50:09 PST"]
[Termination "KenanGarayev won on time"]

1. Nf3 {[%clk 0:03:01.9]} 1... d5 {[%clk 0:02:53.7]} 2. c4 {[%clk 0:03:01.2]}
2... d4 {[%clk 0:02:53.8]} 3. e3 {[%clk 0:03:00]} 3... Nc6 {[%clk 0:02:54.6]} 4.
Nxd4 {[%clk 0:02:58.4]} 4... Nxd4 {[%clk 0:02:55.3]} 5. exd4 {[%clk 0:03:00.3]}
5... Qxd4 {[%clk 0:02:56]} 6. d3 {[%clk 0:03:01.4]} 6... g6 {[%clk 0:02:50.3]}
7. Be2 {[%clk 0:03:00.6]} 7... Bg7 {[%clk 0:02:40.5]} 8. Nc3 {[%clk 0:03:02]}
8... c6 {[%clk 0:02:36.5]} 9. O-O {[%clk 0:03:03.4]} 9... Nh6 {[%clk 0:02:35.9]}
10. Be3 {[%clk 0:03:00.7]} 10... Qd8 {[%clk 0:02:25.8]} 11. Bxh6 {[%clk
0:02:45.7]} 11... Bxh6 {[%clk 0:02:25.8]} 12. d4 {[%clk 0:02:47.6]} 12... O-O
{[%clk 0:02:25.6]} 13. Bf3 {[%clk 0:02:43.7]} 13... Qb6 {[%clk 0:02:20.5]} 14.
Na4 {[%clk 0:02:33.4]} 14... Qb4 {[%clk 0:02:17]} 15. Qb3 {[%clk 0:02:28.2]}
15... Qxb3 {[%clk 0:01:57.3]} 16. axb3 {[%clk 0:02:30.1]} 16... Rb8 {[%clk
0:01:58.4]} 17. Rfe1 {[%clk 0:02:19]} 17... e6 {[%clk 0:01:56.5]} 18. d5 {[%clk
0:02:17.5]} 18... cxd5 {[%clk 0:01:50.5]} 19. cxd5 {[%clk 0:02:19.4]} 19... b6
{[%clk 0:01:44.1]} 20. b4 {[%clk 0:02:13.7]} 20... Bd2 {[%clk 0:01:43.6]} 21.
Re4 {[%clk 0:02:09.7]} 21... a5 {[%clk 0:01:14.3]} 22. bxa5 {[%clk 0:02:01.5]}
22... bxa5 {[%clk 0:01:11.7]} 23. dxe6 {[%clk 0:02:01.7]} 23... Bxe6 {[%clk
0:01:12.1]} 24. Nc5 {[%clk 0:02:02.5]} 24... Bf5 {[%clk 0:01:04.5]} 25. Re2
{[%clk 0:02:01.1]} 25... Rfd8 {[%clk 0:00:37.5]} 26. g4 {[%clk 0:01:38]} 26...
Bc2 {[%clk 0:00:24.8]} 27. Nb7 {[%clk 0:01:31.5]} 27... Rd4 {[%clk 0:00:17]} 28.
Nxa5 {[%clk 0:01:32.3]} 28... Rxb2 {[%clk 0:00:16.1]} 29. Rxd2 {[%clk
0:01:28.6]} 29... Rxd2 {[%clk 0:00:16]} 30. Nc4 {[%clk 0:01:30.5]} 30... Bb3
{[%clk 0:00:13.7]} 31. Nxb2 {[%clk 0:01:25.9]} 31... Rxb2 {[%clk 0:00:14.7]} 32.
Ra8+ {[%clk 0:01:27.8]} 32... Kg7 {[%clk 0:00:15.8]} 33. Rb8 {[%clk 0:01:29.7]}
33... Rb1+ {[%clk 0:00:09.9]} 34. Kg2 {[%clk 0:01:30.6]} 34... Bc2 {[%clk
0:00:11.2]} 35. Rc8 {[%clk 0:01:28.1]} 35... Bd3 {[%clk 0:00:12]} 36. Rc7 {[%clk
0:01:28.6]} 36... g5 {[%clk 0:00:10.7]} 37. Bd5 {[%clk 0:01:27.2]} 37... Bg6
{[%clk 0:00:11.7]} 38. h3 {[%clk 0:01:19.4]} 38... h6 {[%clk 0:00:12.5]} 39. f3
{[%clk 0:01:18]} 39... Rb4 {[%clk 0:00:11.8]} 40. Kg3 {[%clk 0:01:17.2]} 40...
Rd4 {[%clk 0:00:12.9]} 41. Bc4 {[%clk 0:01:15.8]} 41... Rd1 {[%clk 0:00:11.4]}
42. h4 {[%clk 0:01:14.9]} 42... gxh4+ {[%clk 0:00:06.3]} 43. Kxh4 {[%clk
0:01:16.8]} 43... Rh1+ {[%clk 0:00:06.2]} 44. Kg3 {[%clk 0:01:16.9]} 44... Rc1
{[%clk 0:00:06.8]} 45. f4 {[%clk 0:01:14.7]} 45... Rc3+ {[%clk 0:00:06.6]} 46.
Kh4 {[%clk 0:01:13.5]} 1-0

[Event "*** Titled Tuesday Blitz"]
[Site "Chess.com"]
[Date "2018.12.04"]
[Round "4"]
[White "Karina_Oparina"]
[Black "DSCC1"]
[Result "1/2-1/2"]
[WhiteElo "2119"]
[BlackElo "2184"]
[TimeControl "180+2"]
[EndTime "13:50:12 PST"]
[Termination "Game drawn by repetition"]

1. c4 {[%clk 0:02:58.9]} 1... c6 {[%clk 0:02:59.2]} 2. Nf3 {[%clk 0:02:56.2]}
2... Nf6 {[%clk 0:02:59.8]} 3. g3 {[%clk 0:02:56.1]} 3... d5 {[%clk 0:03:00.7]}
4. cxd5 {[%clk 0:02:53.3]} 4... cxd5 {[%clk 0:03:01.3]} 5. d4 {[%clk 0:02:54.1]}
5... Nc6 {[%clk 0:03:02.4]} 6. Bg2 {[%clk 0:02:54.1]} 6... Bg4 {[%clk
0:03:02.8]} 7. h3 {[%clk 0:02:53.4]} 7... Bxf3 {[%clk 0:03:03.8]} 8. Bxf3 {[%clk
0:02:54.3]} 8... e6 {[%clk 0:03:05]} 9. Nc3 {[%clk 0:02:54.3]} 9... Bd6 {[%clk
0:03:00.4]} 10. O-O {[%clk 0:02:48.7]} 10... O-O {[%clk 0:03:01.1]} 11. b3
{[%clk 0:02:26]} 11... Rc8 {[%clk 0:02:50.3]} 12. Bb2 {[%clk 0:02:26.3]} 12...
Qe7 {[%clk 0:02:17.9]} 13. Rc1 {[%clk 0:02:24.4]} 13... Ba3 {[%clk 0:02:10]} 14.
Bxa3 {[%clk 0:02:23.6]} 14... Qxa3 {[%clk 0:02:11.9]} 15. Qd2 {[%clk 0:02:17.4]}
15... Qb4 {[%clk 0:02:06.8]} 16. e3 {[%clk 0:02:16.8]} 16... a6 {[%clk
0:01:52.9]} 17. Rfd1 {[%clk 0:02:08.1]} 17... Rfd8 {[%clk 0:01:46.3]} 18. Kf1
{[%clk 0:01:53.6]} 18... g6 {[%clk 0:01:37]} 19. Ke1 {[%clk 0:01:38.1]} 19... h5
{[%clk 0:01:36.7]} 20. h4 {[%clk 0:01:38.5]} 20... Kg7 {[%clk 0:01:38.2]} 21.
Na4 {[%clk 0:01:35.1]} 21... Qxd2+ {[%clk 0:01:38.7]} 22. Kxd2 {[%clk
0:01:35.4]} 22... Nd7 {[%clk 0:01:36.6]} 23. Nc5 {[%clk 0:01:33.7]} 23... Nxc5
{[%clk 0:01:36.6]} 24. Rxc5 {[%clk 0:01:34.1]} 24... Ne7 {[%clk 0:01:34.1]} 25.
Rdc1 {[%clk 0:01:34.4]} 25... Rxc5 {[%clk 0:01:33.1]} 26. Rxc5 {[%clk
0:01:33.2]} 26... Rc8 {[%clk 0:01:34.4]} 27. Rxc8 {[%clk 0:01:24.7]} 27... Nxc8
{[%clk 0:01:35]} 28. Kc3 {[%clk 0:01:25.7]} 28... Kf8 {[%clk 0:01:20.8]} 29. e4
{[%clk 0:01:06.2]} 29... dxe4 {[%clk 0:01:19.7]} 30. Bxe4 {[%clk 0:01:06.2]}
30... Nd6 {[%clk 0:01:21.3]} 31. Bd3 {[%clk 0:00:57.1]} 31... Ke7 {[%clk
0:01:19.5]} 32. Kb4 {[%clk 0:00:56.8]} 32... Kd7 {[%clk 0:01:13.8]} 33. a4
{[%clk 0:00:47.4]} 33... Kc6 {[%clk 0:00:59.5]} 34. a5 {[%clk 0:00:47.1]} 34...
Kd5 {[%clk 0:00:55.4]} 35. Kc3 {[%clk 0:00:43.9]} 35... Kc6 {[%clk 0:00:14.8]}
36. Kb4 {[%clk 0:00:32.4]} 36... Kd5 {[%clk 0:00:15.3]} 37. Kc3 {[%clk
0:00:33.2]} 37... Kc6 {[%clk 0:00:15.5]} 38. Kb4 {[%clk 0:00:26]} 38... Kd5
{[%clk 0:00:16.5]} 39. Kc3 {[%clk 0:00:26.9]} 39... Kc6 {[%clk 0:00:17.4]} 40.
Kb4 {[%clk 0:00:27.8]} 1/2-1/2

[Event "*** Titled Tuesday Blitz"]
[Site "Chess.com"]
[Date "2018.12.04"]
[Round "4"]
[White "realcontender"]
[Black "FearNoEvil12"]
[Result "1/2-1/2"]
[WhiteElo "2110"]
[BlackElo "1979"]
[TimeControl "180+2"]
[EndTime "13:50:17 PST"]
[Termination "Game drawn - insufficient material"]

1. d4 {[%clk 0:03:01.9]} 1... b5 {[%clk 0:02:59.6]} 2. a4 {[%clk 0:02:50.8]}
2... b4 {[%clk 0:02:59.3]} 3. Nf3 {[%clk 0:02:48.1]} 3... Bb7 {[%clk 0:02:58.9]}
4. a5 {[%clk 0:02:48.1]} 4... Nf6 {[%clk 0:02:53.8]} 5. Bf4 {[%clk 0:02:45.5]}
5... e6 {[%clk 0:02:52]} 6. e3 {[%clk 0:02:45.6]} 6... a6 {[%clk 0:02:52.3]} 7.
Bd3 {[%clk 0:02:43.4]} 7... d6 {[%clk 0:02:52.5]} 8. O-O {[%clk 0:02:42.7]} 8...
Nbd7 {[%clk 0:02:53.9]} 9. Nbd2 {[%clk 0:02:43.8]} 9... h6 {[%clk 0:02:53.6]}
10. Ra4 {[%clk 0:02:36.8]} 10... g5 {[%clk 0:02:53.5]} 11. Bg3 {[%clk
0:02:37.1]} 11... Rg8 {[%clk 0:02:51.8]} 12. Rxb4 {[%clk 0:02:35.1]} 12... Rb8
{[%clk 0:02:53.2]} 13. c3 {[%clk 0:02:32]} 13... h5 {[%clk 0:02:52.6]} 14. Qb3
{[%clk 0:02:23.3]} 14... Bxf3 {[%clk 0:02:38.4]} 15. Nxf3 {[%clk 0:02:20.6]}
15... h4 {[%clk 0:02:39.1]} 16. Nxh4 {[%clk 0:02:01.7]} 16... gxh4 {[%clk
0:02:39]} 17. Bxh4 {[%clk 0:02:02]} 17... Be7 {[%clk 0:02:27.9]} 18. Bxa6 {[%clk
0:01:52]} 18... Rxb4 {[%clk 0:02:26.9]} 19. Qxb4 {[%clk 0:01:50]} 19... Nd5
{[%clk 0:02:19.2]} 20. Bxe7 {[%clk 0:01:42.1]} 20... Nxb4 {[%clk 0:02:19.4]} 21.
Bxd8 {[%clk 0:01:39.8]} 21... Nxa6 {[%clk 0:02:19.9]} 22. Bh4 {[%clk 0:01:38.7]}
22... c5 {[%clk 0:02:09.4]} 23. Bg3 {[%clk 0:01:35.4]} 23... Ke7 {[%clk
0:02:07.2]} 24. Rb1 {[%clk 0:01:30.6]} 24... c4 {[%clk 0:01:39.6]} 25. b4 {[%clk
0:01:17.8]} 25... cxb3 {[%clk 0:01:38.9]} 26. Rxb3 {[%clk 0:01:18.8]} 26... Rb8
{[%clk 0:01:36.4]} 27. Rxb8 {[%clk 0:01:14.8]} 27... Ndxb8 {[%clk 0:01:36.1]}
28. c4 {[%clk 0:00:42.9]} 28... Nc6 {[%clk 0:01:36.7]} 29. c5 {[%clk 0:00:32.1]}
29... dxc5 {[%clk 0:01:36.4]} 30. dxc5 {[%clk 0:00:34]} 30... Nxc5 {[%clk
0:01:30.5]} 31. Bc7 {[%clk 0:00:35]} 31... Kd7 {[%clk 0:01:28.6]} 32. Bb6 {[%clk
0:00:36]} 32... Na4 {[%clk 0:01:28.8]} 33. h4 {[%clk 0:00:33.1]} 33... Nxb6
{[%clk 0:01:21.4]} 34. axb6 {[%clk 0:00:34.1]} 34... Ne7 {[%clk 0:01:20.8]} 35.
h5 {[%clk 0:00:34.2]} 35... Ng8 {[%clk 0:01:17.7]} 36. g4 {[%clk 0:00:33.8]}
36... Kc6 {[%clk 0:01:18.1]} 37. g5 {[%clk 0:00:33.7]} 37... Kxb6 {[%clk
0:01:10.5]} 38. h6 {[%clk 0:00:18.6]} 38... Ne7 {[%clk 0:01:11.4]} 39. f4 {[%clk
0:00:19.1]} 39... Ng6 {[%clk 0:01:12]} 40. h7 {[%clk 0:00:19]} 40... Kc5 {[%clk
0:01:07.1]} 41. Kf2 {[%clk 0:00:19.7]} 41... Kd6 {[%clk 0:01:04.8]} 42. Kf3
{[%clk 0:00:19.4]} 42... Ke7 {[%clk 0:01:04.5]} 43. e4 {[%clk 0:00:20.5]} 43...
Kf8 {[%clk 0:01:04.6]} 44. f5 {[%clk 0:00:21.5]} 44... Nh8 {[%clk 0:00:54.7]}
45. Kg4 {[%clk 0:00:21.3]} 45... Kg7 {[%clk 0:00:55]} 46. fxe6 {[%clk
0:00:20.9]} 46... fxe6 {[%clk 0:00:55.4]} 47. Kf4 {[%clk 0:00:22.4]} 47... Kxh7
{[%clk 0:00:50.2]} 48. Ke5 {[%clk 0:00:23.5]} 48... Kg6 {[%clk 0:00:51.3]} 49.
Kxe6 {[%clk 0:00:24.7]} 49... Kxg5 {[%clk 0:00:51.9]} 50. e5 {[%clk 0:00:18.7]}
50... Ng6 {[%clk 0:00:51.5]} 51. Kd6 {[%clk 0:00:20.1]} 51... Nxe5 {[%clk
0:00:52]} 1/2-1/2

[Event "*** Titled Tuesday Blitz"]
[Site "Chess.com"]
[Date "2018.12.04"]
[Round "4"]
[White "baki83"]
[Black "GMWSO"]
[Result "1-0"]
[WhiteElo "2527"]
[BlackElo "2965"]
[TimeControl "180+2"]
[EndTime "13:50:24 PST"]
[Termination "baki83 won by resignation"]

1. e4 {[%clk 0:03:00.8]} 1... c5 {[%clk 0:02:57]} 2. Nf3 {[%clk 0:03:01.4]} 2...
d6 {[%clk 0:02:58.6]} 3. Bb5+ {[%clk 0:03:01.9]} 3... Nd7 {[%clk 0:02:59.6]} 4.
O-O {[%clk 0:03:02.1]} 4... a6 {[%clk 0:03:00.8]} 5. Bd3 {[%clk 0:03:03.3]} 5...
Ngf6 {[%clk 0:03:01.3]} 6. Re1 {[%clk 0:03:04.4]} 6... b5 {[%clk 0:03:02.4]} 7.
c4 {[%clk 0:03:05.3]} 7... b4 {[%clk 0:02:48.1]} 8. a3 {[%clk 0:03:05.1]} 8...
bxa3 {[%clk 0:02:44.4]} 9. Rxa3 {[%clk 0:03:06.1]} 9... Bb7 {[%clk 0:02:45.5]}
10. Nc3 {[%clk 0:03:04.7]} 10... g6 {[%clk 0:02:43]} 11. Bc2 {[%clk 0:02:57.7]}
11... Bg7 {[%clk 0:02:42.4]} 12. d4 {[%clk 0:02:58.7]} 12... cxd4 {[%clk
0:02:44.3]} 13. Nxd4 {[%clk 0:02:59.9]} 13... O-O {[%clk 0:02:45]} 14. Nf3
{[%clk 0:02:43.8]} 14... a5 {[%clk 0:02:34.5]} 15. h3 {[%clk 0:02:39]} 15... Nc5
{[%clk 0:02:30]} 16. Nd5 {[%clk 0:02:39.1]} 16... Re8 {[%clk 0:02:17.7]} 17. h4
{[%clk 0:02:23.3]} 17... e6 {[%clk 0:02:06.5]} 18. Nxf6+ {[%clk 0:02:24.1]}
18... Bxf6 {[%clk 0:02:07.3]} 19. Bg5 {[%clk 0:02:24.7]} 19... Bxg5 {[%clk
0:02:04.2]} 20. hxg5 {[%clk 0:02:25.8]} 20... Qb6 {[%clk 0:01:59.8]} 21. Qc1
{[%clk 0:02:22.6]} 21... Bc6 {[%clk 0:01:44]} 22. Nh2 {[%clk 0:02:20.8]} 22...
Reb8 {[%clk 0:01:42.1]} 23. b3 {[%clk 0:01:44.5]} 23... e5 {[%clk 0:01:29.4]}
24. Ng4 {[%clk 0:01:44.4]} 24... Ne6 {[%clk 0:01:30.6]} 25. Re3 {[%clk
0:01:21.4]} 25... Nxg5 {[%clk 0:01:22.2]} 26. Rg3 {[%clk 0:00:59]} 26... Ne6
{[%clk 0:01:23]} 27. Qh6 {[%clk 0:00:24.6]} 27... Qd8 {[%clk 0:01:21.7]} 28. Rf3
{[%clk 0:00:15.4]} 28... Nf8 {[%clk 0:01:02.4]} 29. Nf6+ {[%clk 0:00:12.1]}
29... Kh8 {[%clk 0:01:03.3]} 30. g4 {[%clk 0:00:11.4]} 30... Bd7 {[%clk
0:00:30.7]} 31. g5 {[%clk 0:00:12.6]} 31... Rb4 {[%clk 0:00:32.2]} 32. Kg2
{[%clk 0:00:13.8]} 32... Qc8 {[%clk 0:00:18.6]} 33. Ra1 {[%clk 0:00:12.1]} 33...
Bg4 {[%clk 0:00:18.9]} 34. Rg3 {[%clk 0:00:11.5]} 34... Bh5 {[%clk 0:00:18.7]}
35. Rh1 {[%clk 0:00:11.5]} 35... Qe6 {[%clk 0:00:17.4]} 36. Rgh3 {[%clk
0:00:11.2]} 36... a4 {[%clk 0:00:09.8]} 37. Rxh5 {[%clk 0:00:12]} 37... gxh5
{[%clk 0:00:11.7]} 38. Rxh5 {[%clk 0:00:13.1]} 1-0

[Event "*** Titled Tuesday Blitz"]
[Site "Chess.com"]
[Date "2018.12.04"]
[Round "4"]
[White "M1711"]
[Black "StanislavNovikov"]
[Result "1/2-1/2"]
[WhiteElo "2472"]
[BlackElo "2457"]
[TimeControl "180+2"]
[EndTime "13:50:26 PST"]
[Termination "Game drawn by repetition"]

1. d4 {[%clk 0:03:01.9]} 1... g6 {[%clk 0:03:00.5]} 2. Nf3 {[%clk 0:03:01.3]}
2... Bg7 {[%clk 0:03:01.9]} 3. c4 {[%clk 0:03:02]} 3... d6 {[%clk 0:03:03.2]} 4.
Nc3 {[%clk 0:03:01.5]} 4... Bg4 {[%clk 0:03:04.1]} 5. e4 {[%clk 0:03:00.6]} 5...
Nc6 {[%clk 0:03:03.3]} 6. Be3 {[%clk 0:02:59.3]} 6... e5 {[%clk 0:03:02.9]} 7.
d5 {[%clk 0:02:53.2]} 7... Nd4 {[%clk 0:03:03.9]} 8. Be2 {[%clk 0:02:53.8]} 8...
Bxf3 {[%clk 0:03:03.6]} 9. gxf3 {[%clk 0:02:53.9]} 9... c5 {[%clk 0:03:00.6]}
10. dxc6 {[%clk 0:02:52.8]} 10... bxc6 {[%clk 0:03:01.4]} 11. Qd2 {[%clk
0:02:53.5]} 11... Ne7 {[%clk 0:02:59]} 12. h4 {[%clk 0:02:43.9]} 12... h5 {[%clk
0:02:57.5]} 13. f4 {[%clk 0:02:26.9]} 13... Rb8 {[%clk 0:02:55.4]} 14. O-O-O
{[%clk 0:02:14.5]} 14... Qa5 {[%clk 0:02:49.4]} 15. fxe5 {[%clk 0:02:11.7]}
15... dxe5 {[%clk 0:02:47.9]} 16. f4 {[%clk 0:02:01.4]} 16... O-O {[%clk
0:02:21.2]} 17. fxe5 {[%clk 0:01:54.3]} 17... Nxe2+ {[%clk 0:02:18.2]} 18. Qxe2
{[%clk 0:01:56.2]} 18... Bxe5 {[%clk 0:02:14.6]} 19. Bd4 {[%clk 0:01:54.1]}
19... Bxd4 {[%clk 0:01:53.7]} 20. Rxd4 {[%clk 0:01:56]} 20... Qe5 {[%clk
0:01:54.5]} 21. Qd2 {[%clk 0:01:48.2]} 21... Kg7 {[%clk 0:01:38]} 22. Rg1 {[%clk
0:01:37.9]} 22... Ng8 {[%clk 0:01:35.9]} 23. Rd6 {[%clk 0:01:25.9]} 23... Nf6
{[%clk 0:01:23.3]} 24. Rg5 {[%clk 0:01:08.7]} 24... Qe7 {[%clk 0:01:16.3]} 25.
e5 {[%clk 0:00:58.3]} 25... Ng4 {[%clk 0:01:13]} 26. Rgxg6+ {[%clk 0:00:38]}
26... fxg6 {[%clk 0:01:13.1]} 27. Rd7 {[%clk 0:00:39.7]} 27... Rb7 {[%clk
0:01:02.4]} 28. Rxe7+ {[%clk 0:00:36.3]} 28... Rxe7 {[%clk 0:01:04.3]} 29. Qd6
{[%clk 0:00:32.4]} 29... Rxe5 {[%clk 0:00:59.8]} 30. Kc2 {[%clk 0:00:19.5]}
30... c5 {[%clk 0:00:37.8]} 31. Nd5 {[%clk 0:00:18.3]} 31... Rf3 {[%clk
0:00:28.9]} 32. Qc7+ {[%clk 0:00:14.3]} 32... Kh6 {[%clk 0:00:27.9]} 33. Qd8
{[%clk 0:00:08.9]} 33... Kg7 {[%clk 0:00:12.8]} 34. Qc7+ {[%clk 0:00:06.2]}
34... Kh6 {[%clk 0:00:13.1]} 35. Qd8 {[%clk 0:00:07.2]} 35... Kg7 {[%clk
0:00:09.5]} 36. Qc7+ {[%clk 0:00:06.7]} 36... Kh6 {[%clk 0:00:08.6]} 37. Qd8
{[%clk 0:00:07.8]} 37... Kg7 {[%clk 0:00:08.8]} 38. Qc7+ {[%clk 0:00:08.5]}
38... Kh6 {[%clk 0:00:09]} 1/2-1/2